[Event "FIDE World Rapid Chess Championship 2021"]
[White "Durarbayli, Vasif"]
[Black "Giri, Anish"]
[WhiteFideId "13402935"]
[BlackFideId "24116068"]
[WhiteElo "2532"]
[BlackElo "2767"]
[Result "0-1"]
[Round "02"]
[TimeControl "900+10"]
[Date "2021.12.26"]
[WhiteClock "0:00:33"]
[BlackClock "0:01:01"]

1. e4 {[%clk 0:15:18]}  c5 {[%clk 0:15:19]} 2. b3 {[%clk 0:15:27]}  g6 {[%clk 0:15:20]} 3. Bb2 {[%clk 0:15:36]}  Nf6 {[%clk 0:15:29]} 4. e5 {[%clk 0:15:45]}  Nd5 {[%clk 0:15:12]} 5. Nc3 {[%clk 0:15:54]}  Nb4 {[%clk 0:15:04]} 6. Ne4 {[%clk 0:14:50]}  Bg7 {[%clk 0:14:36]} 7. Nxc5 {[%clk 0:13:36]}  d6 {[%clk 0:14:30]} 8. Bb5+ {[%clk 0:13:06]}  N8c6 {[%clk 0:13:50]} 9. a3 {[%clk 0:13:07]}  dxc5 {[%clk 0:12:13]} 10. axb4 {[%clk 0:13:13]}  cxb4 {[%clk 0:12:21]} 11. Nf3 {[%clk 0:11:25]}  O-O {[%clk 0:10:58]} 12. h3 {[%clk 0:11:26]}  Be6 {[%clk 0:09:48]} 13. Bxc6 {[%clk 0:09:33]}  bxc6 {[%clk 0:09:57]} 14. O-O {[%clk 0:09:41]}  c5 {[%clk 0:09:19]} 15. d3 {[%clk 0:09:49]}  a5 {[%clk 0:09:28]} 16. Ng5 {[%clk 0:09:49]}  Bd5 {[%clk 0:09:28]} 17. Qg4 {[%clk 0:08:19]}  f5 {[%clk 0:08:06]} 18. Qe2 {[%clk 0:03:57]}  h6 {[%clk 0:08:11]} 19. Nf3 {[%clk 0:04:06]}  Qc7 {[%clk 0:07:51]} 20. Nd2 {[%clk 0:04:13]}  Ra6 {[%clk 0:07:14]} 21. f4 {[%clk 0:04:02]}  Rfa8 {[%clk 0:07:11]} 22. Kh2 {[%clk 0:03:42]}  a4 {[%clk 0:07:17]} 23. bxa4 {[%clk 0:03:50]}  Rxa4 {[%clk 0:07:26]} 24. Rab1 {[%clk 0:03:42]}  Ra2 {[%clk 0:07:18]} 25. Rg1 {[%clk 0:03:29]}  Qc6 {[%clk 0:06:48]} 26. g4 {[%clk 0:04:02]}  Rf8 {[%clk 0:06:52]} 27. Qe3 {[%clk 0:02:02]}  g5 {[%clk 0:04:24]} 28. gxf5 {[%clk 0:02:02]}  Rxf5 {[%clk 0:06:52]} 29. Rg4 {[%clk 0:01:27]}  Rxf4 {[%clk 0:04:28]} 30. Rxf4 {[%clk 0:01:27]}  gxf4 {[%clk 0:04:28]} 31. Qxf4 {[%clk 0:01:27]}  Rxb2 {[%clk 0:04:28]} 32. Rxb2 {[%clk 0:01:28]}  Qg6 {[%clk 0:01:44]} 33. Ne4 {[%clk 0:01:23]}  Bxe4 {[%clk 0:01:44]} 34. dxe4 {[%clk 0:01:23]}  Qh5 {[%clk 0:01:44]} 35. Rb3 {[%clk 0:01:23]}  Bxe5 {[%clk 0:01:44]} 36. Rg3+ {[%clk 0:01:23]}  Kh7 {[%clk 0:01:01]} 37. Qf2 {[%clk 0:00:33]}  Qg6 {[%clk 0:01:01]} 38. Kg2 {[%clk 0:00:33]}  Qxg3+ {[%clk 0:01:01]} 39. Qxg3 {[%clk 0:00:33]}  Bxg3 {[%clk 0:01:01]} 40. Kxg3 {[%clk 0:00:33]}  c4 {[%clk 0:01:01]} 41. Kf4 {[%clk 0:00:33]}  b3 {[%clk 0:01:01]} 0-1


[Site "http://www.Chess.com"]

[Event "FIDE World Rapid Chess Championship 2021"]
[White "Michalik, Peter"]
[Black "Karjakin, Sergey"]
[WhiteFideId "14907526"]
[BlackFideId "14109603"]
[WhiteElo "2515"]
[BlackElo "2757"]
[Result "1-0"]
[Round "02"]
[TimeControl "900+10"]
[Date "2021.12.26"]
[WhiteClock "0:03:11"]
[BlackClock "0:03:07"]

1. e4 {[%clk 0:15:17]}  c5 {[%clk 0:15:02]} 2. Nf3 {[%clk 0:15:25]}  d6 {[%clk 0:15:11]} 3. Bb5+ {[%clk 0:15:27]}  Nd7 {[%clk 0:15:20]} 4. d4 {[%clk 0:15:33]}  cxd4 {[%clk 0:15:26]} 5. Qxd4 {[%clk 0:15:41]}  a6 {[%clk 0:15:32]} 6. Bxd7+ {[%clk 0:15:45]}  Bxd7 {[%clk 0:15:41]} 7. O-O {[%clk 0:15:46]}  Nf6 {[%clk 0:15:37]} 8. c4 {[%clk 0:15:47]}  g6 {[%clk 0:15:43]} 9. Nc3 {[%clk 0:15:31]}  Bg7 {[%clk 0:15:52]} 10. Qd3 {[%clk 0:15:30]}  O-O {[%clk 0:15:56]} 11. Be3 {[%clk 0:15:25]}  b5 {[%clk 0:14:51]} 12. cxb5 {[%clk 0:14:25]}  axb5 {[%clk 0:14:59]} 13. a3 {[%clk 0:14:32]}  Qb8 {[%clk 0:14:42]} 14. Bd4 {[%clk 0:14:12]}  e5 {[%clk 0:10:18]} 15. Be3 {[%clk 0:14:18]}  Be6 {[%clk 0:10:27]} 16. Nd2 {[%clk 0:08:19]}  d5 {[%clk 0:08:16]} 17. exd5 {[%clk 0:07:52]}  Bf5 {[%clk 0:07:31]} 18. Qe2 {[%clk 0:06:52]}  b4 {[%clk 0:06:05]} 19. axb4 {[%clk 0:07:00]}  Qxb4 {[%clk 0:06:12]} 20. Nc4 {[%clk 0:05:58]}  h5 {[%clk 0:05:00]} 21. h3 {[%clk 0:05:53]}  Nd7 {[%clk 0:04:21]} 22. g4 {[%clk 0:05:58]}  hxg4 {[%clk 0:05:00]} 23. hxg4 {[%clk 0:05:58]}  Bc2 {[%clk 0:04:31]} 24. Qxc2 {[%clk 0:05:01]}  Qxc4 {[%clk 0:04:39]} 25. Ra4 {[%clk 0:05:03]}  Qc8 {[%clk 0:04:16]} 26. g5 {[%clk 0:04:50]}  e4 {[%clk 0:03:54]} 27. Rxa8 {[%clk 0:04:11]}  Qxa8 {[%clk 0:04:04]} 28. Rd1 {[%clk 0:05:03]}  Qc8 {[%clk 0:03:35]} 29. Qxe4 {[%clk 0:03:57]}  Ne5 {[%clk 0:03:43]} 30. Kg2 {[%clk 0:04:05]}  Nc4 {[%clk 0:03:26]} 31. d6 {[%clk 0:04:05]}  Nxb2 {[%clk 0:03:07]} 32. Nd5 {[%clk 0:03:11]} 1-0


[Site "http://www.Chess.com"]

[Event "FIDE World Rapid Chess Championship 2021"]
[White "Christiansen, Johan-Sebastian"]
[Black "Wojtaszek, Radoslaw"]
[WhiteFideId "1512668"]
[BlackFideId "1118358"]
[WhiteElo "2522"]
[BlackElo "2743"]
[Result "0-1"]
[Round "02"]
[TimeControl "900+10"]
[Date "2021.12.26"]
[WhiteClock "0:02:20"]
[BlackClock "0:02:49"]

1. e4 {[%clk 0:15:18]}  c6 {[%clk 0:15:18]} 2. d4 {[%clk 0:13:17]}  d5 {[%clk 0:15:42]} 3. Nd2 {[%clk 0:13:17]}  dxe4 {[%clk 0:15:42]} 4. Nxe4 {[%clk 0:13:17]}  Bf5 {[%clk 0:15:42]} 5. Ng3 {[%clk 0:13:17]}  Bg6 {[%clk 0:15:42]} 6. h4 {[%clk 0:13:17]}  h6 {[%clk 0:15:42]} 7. Nh3 {[%clk 0:13:17]}  Nf6 {[%clk 0:15:42]} 8. Nf4 {[%clk 0:13:17]}  Bh7 {[%clk 0:15:42]} 9. Bc4 {[%clk 0:13:17]}  e6 {[%clk 0:13:08]} 10. O-O {[%clk 0:13:22]}  Bd6 {[%clk 0:12:37]} 11. Re1 {[%clk 0:13:19]}  O-O {[%clk 0:11:53]} 12. Ngh5 {[%clk 0:13:22]}  Nxh5 {[%clk 0:10:08]} 13. Nxh5 {[%clk 0:13:30]}  Bg6 {[%clk 0:10:08]} 14. Qg4 {[%clk 0:12:43]}  Qa5 {[%clk 0:06:16]} 15. Nf6+ {[%clk 0:12:43]}  gxf6 {[%clk 0:06:24]} 16. Rxe6 {[%clk 0:08:22]}  h5 {[%clk 0:06:33]} 17. Qe2 {[%clk 0:04:38]}  fxe6 {[%clk 0:04:55]} 18. Qxe6+ {[%clk 0:04:46]}  Bf7 {[%clk 0:06:33]} 19. Qxd6 {[%clk 0:04:38]}  Bxc4 {[%clk 0:06:33]} 20. Bh6 {[%clk 0:04:57]}  Rf7 {[%clk 0:06:33]} 21. b3 {[%clk 0:04:28]}  Kh7 {[%clk 0:03:51]} 22. Be3 {[%clk 0:04:16]}  Bd5 {[%clk 0:02:42]} 23. Qf4 {[%clk 0:04:05]}  Nd7 {[%clk 0:03:51]} 24. Bd2 {[%clk 0:04:12]}  Qd8 {[%clk 0:02:30]} 25. c4 {[%clk 0:04:12]}  Bxg2 {[%clk 0:02:32]} 26. Kxg2 {[%clk 0:04:12]}  Rg7+ {[%clk 0:02:30]} 27. Kh1 {[%clk 0:04:12]}  Nf8 {[%clk 0:02:30]} 28. Qf5+ {[%clk 0:04:12]}  Kg8 {[%clk 0:02:43]} 29. d5 {[%clk 0:02:13]}  Qd7 {[%clk 0:02:43]} 30. Qf3 {[%clk 0:02:20]}  Qg4 {[%clk 0:02:49]} 0-1


[Site "http://www.Chess.com"]

[Event "FIDE World Rapid Chess Championship 2021"]
[White "Oparin, Grigoriy"]
[Black "Maghsoodloo, Parham"]
[WhiteFideId "24125890"]
[BlackFideId "12539929"]
[WhiteElo "2725"]
[BlackElo "2512"]
[Result "0-1"]
[Round "02"]
[TimeControl "900+10"]
[Date "2021.12.26"]
[WhiteClock "0:00:13"]
[BlackClock "0:00:22"]

1. Nf3 {[%clk 0:15:17]}  Nf6 {[%clk 0:15:09]} 2. c4 {[%clk 0:15:25]}  e6 {[%clk 0:15:13]} 3. g3 {[%clk 0:15:31]}  a6 {[%clk 0:15:08]} 4. Nc3 {[%clk 0:13:23]}  d5 {[%clk 0:15:15]} 5. cxd5 {[%clk 0:13:16]}  exd5 {[%clk 0:15:24]} 6. d4 {[%clk 0:13:24]}  Bd6 {[%clk 0:13:41]} 7. Bg2 {[%clk 0:13:31]}  Nbd7 {[%clk 0:13:32]} 8. Nh4 {[%clk 0:12:14]}  c6 {[%clk 0:12:01]} 9. Nf5 {[%clk 0:11:23]}  Bf8 {[%clk 0:12:10]} 10. Qd3 {[%clk 0:11:16]}  Nb6 {[%clk 0:12:11]} 11. O-O {[%clk 0:10:16]}  Be6 {[%clk 0:11:45]} 12. Re1 {[%clk 0:10:16]}  Qd7 {[%clk 0:11:23]} 13. Nh4 {[%clk 0:08:17]}  Be7 {[%clk 0:11:18]} 14. Nf3 {[%clk 0:06:49]}  Bf5 {[%clk 0:11:12]} 15. Qd1 {[%clk 0:06:58]}  O-O {[%clk 0:11:09]} 16. Ne5 {[%clk 0:07:04]}  Qe6 {[%clk 0:11:17]} 17. Qb3 {[%clk 0:06:56]}  c5 {[%clk 0:10:41]} 18. Be3 {[%clk 0:05:26]}  c4 {[%clk 0:10:12]} 19. Qd1 {[%clk 0:05:34]}  Ne4 {[%clk 0:08:21]} 20. Bf4 {[%clk 0:04:12]}  f6 {[%clk 0:05:36]} 21. Nf3 {[%clk 0:04:20]}  Bb4 {[%clk 0:05:44]} 22. Bd2 {[%clk 0:03:45]}  Bxc3 {[%clk 0:05:52]} 23. Bxc3 {[%clk 0:03:32]}  Bh3 {[%clk 0:08:21]} 24. Bh1 {[%clk 0:03:34]}  Qf5 {[%clk 0:05:46]} 25. Ba5 {[%clk 0:03:34]}  Nc8 {[%clk 0:05:49]} 26. Qc1 {[%clk 0:01:45]}  Re8 {[%clk 0:05:05]} 27. Qf4 {[%clk 0:01:45]}  Qxf4 {[%clk 0:05:05]} 28. gxf4 {[%clk 0:01:04]}  b5 {[%clk 0:04:02]} 29. Nd2 {[%clk 0:01:02]}  Bf5 {[%clk 0:03:51]} 30. f3 {[%clk 0:00:56]}  Nxd2 {[%clk 0:04:02]} 31. Bxd2 {[%clk 0:01:02]}  Ne7 {[%clk 0:04:02]} 32. e4 {[%clk 0:01:02]}  Be6 {[%clk 0:04:02]} 33. f5 {[%clk 0:01:02]}  Bf7 {[%clk 0:04:02]} 34. Bc3 {[%clk 0:01:02]}  Nc6 {[%clk 0:04:02]} 35. b4 {[%clk 0:01:02]}  Red8 {[%clk 0:02:58]} 36. a3 {[%clk 0:00:27]}  Rab8 {[%clk 0:02:58]} 37. Rad1 {[%clk 0:00:27]}  Rb7 {[%clk 0:02:58]} 38. e5 {[%clk 0:00:27]}  Ne7 {[%clk 0:02:58]} 39. f4 {[%clk 0:00:27]}  Nxf5 {[%clk 0:02:58]} 40. Kf2 {[%clk 0:00:27]}  Rb6 {[%clk 0:02:58]} 41. Bf3 {[%clk 0:00:27]}  Nh4 {[%clk 0:02:58]} 42. Be2 {[%clk 0:00:27]}  Bg6 {[%clk 0:02:58]} 43. Rg1 {[%clk 0:00:27]}  Be4 {[%clk 0:02:58]} 44. Bg4 {[%clk 0:00:27]}  Rf8 {[%clk 0:02:58]} 45. Kg3 {[%clk 0:00:33]}  Ng6 {[%clk 0:00:32]} 46. Rdf1 {[%clk 0:00:33]}  Ne7 {[%clk 0:00:32]} 47. h4 {[%clk 0:00:33]}  f5 {[%clk 0:00:32]} 48. Be2 {[%clk 0:00:33]}  Rg6+ {[%clk 0:00:32]} 49. Kf2 {[%clk 0:00:33]}  Rxg1 {[%clk 0:00:32]} 50. Rxg1 {[%clk 0:00:33]}  Nc6 {[%clk 0:00:32]} 51. Ke3 {[%clk 0:00:33]}  Ra8 {[%clk 0:00:32]} 52. a4 {[%clk 0:00:33]}  bxa4 {[%clk 0:00:38]} 53. Ra1 {[%clk 0:00:37]}  Bc2 {[%clk 0:00:38]} 54. Kd2 {[%clk 0:00:37]}  Bb3 {[%clk 0:00:38]} 55. Bf3 {[%clk 0:00:37]}  Rd8 {[%clk 0:00:38]} 56. e6 {[%clk 0:00:37]}  Kf8 {[%clk 0:00:40]} 57. h5 {[%clk 0:00:37]}  Ke7 {[%clk 0:00:38]} 58. Rg1 {[%clk 0:00:37]}  Kf6 {[%clk 0:00:38]} 59. Kc1 {[%clk 0:00:37]}  a3 {[%clk 0:00:38]} 60. Re1 {[%clk 0:00:19]}  Rd6 {[%clk 0:00:38]} 61. Re5 {[%clk 0:00:37]}  Ne7 {[%clk 0:00:38]} 62. Be1 {[%clk 0:00:37]}  Rxe6 {[%clk 0:00:38]} 63. Bh4+ {[%clk 0:00:37]}  Kf7 {[%clk 0:00:38]} 64. Bxd5 {[%clk 0:00:29]}  Nxd5 {[%clk 0:01:18]} 65. Rxd5 {[%clk 0:00:29]}  a2 {[%clk 0:01:18]} 66. Rxf5+ {[%clk 0:00:36]}  Ke8 {[%clk 0:01:18]} 67. Kb2 {[%clk 0:00:29]}  c3+ {[%clk 0:00:17]} 68. Ka1 {[%clk 0:00:48]}  Rc6 {[%clk 0:00:20]} 69. Re5+ {[%clk 0:00:46]}  Kf7 {[%clk 0:01:18]} 70. Re1 {[%clk 0:00:29]}  Rc4 {[%clk 0:00:19]} 71. Rc1 {[%clk 0:00:13]}  Rxd4 {[%clk 0:00:27]} 72. Bf2 {[%clk 0:00:18]}  Rd3 {[%clk 0:00:16]} 73. Be1 {[%clk 0:00:13]}  c2 {[%clk 0:00:22]} 0-1


[Site "http://www.Chess.com"]

[Event "FIDE World Rapid Chess Championship 2021"]
[White "Sargissian, Gabriel"]
[Black "Sanal, Vahap"]
[WhiteFideId "13300881"]
[BlackFideId "6300545"]
[WhiteElo "2693"]
[BlackElo "2509"]
[Result "1/2-1/2"]
[Round "02"]
[TimeControl "900+10"]
[Date "2021.12.26"]
[WhiteClock "23:59:47"]
[BlackClock "0:01:51"]

1. d4 {[%clk 0:15:17]}  Nf6 {[%clk 0:15:13]} 2. c4 {[%clk 0:15:24]}  e6 {[%clk 0:15:17]} 3. Nf3 {[%clk 0:14:48]}  b6 {[%clk 0:15:24]} 4. g3 {[%clk 0:14:48]}  Bb7 {[%clk 0:15:31]} 5. Bg2 {[%clk 0:14:55]}  Be7 {[%clk 0:15:39]} 6. O-O {[%clk 0:14:55]}  O-O {[%clk 0:15:45]} 7. h4 {[%clk 0:13:39]}  Na6 {[%clk 0:15:28]} 8. Nc3 {[%clk 0:13:39]}  Ne4 {[%clk 0:15:28]} 9. Nxe4 {[%clk 0:13:39]}  Bxe4 {[%clk 0:15:28]} 10. Ng5 {[%clk 0:13:39]}  Bxg2 {[%clk 0:15:28]} 11. Kxg2 {[%clk 0:13:39]}  h6 {[%clk 0:15:28]} 12. Nh3 {[%clk 0:13:20]}  d5 {[%clk 0:14:56]} 13. Qa4 {[%clk 0:13:05]}  Qc8 {[%clk 0:13:27]} 14. cxd5 {[%clk 0:12:42]}  exd5 {[%clk 0:13:33]} 15. Nf4 {[%clk 0:12:18]}  Rd8 {[%clk 0:13:24]} 16. Qb3 {[%clk 0:11:09]}  Qf5 {[%clk 0:12:20]} 17. Rd1 {[%clk 0:10:02]}  Nb4 {[%clk 0:11:07]} 18. Be3 {[%clk 0:05:41]}  c5 {[%clk 0:08:06]} 19. dxc5 {[%clk 0:05:49]}  bxc5 {[%clk 0:07:36]} 20. Bd2 {[%clk 0:05:57]}  Nc2 {[%clk 0:04:38]} 21. Rac1 {[%clk 0:05:55]}  Nd4 {[%clk 0:04:46]} 22. Qd3 {[%clk 0:05:57]}  Qxd3 {[%clk 0:07:36]} 23. exd3 {[%clk 0:05:57]}  Rac8 {[%clk 0:03:39]} 24. Bc3 {[%clk 0:04:28]}  Nc6 {[%clk 0:03:23]} 25. b3 {[%clk 0:03:07]}  a5 {[%clk 0:02:38]} 26. Bd2 {[%clk 0:03:07]}  a4 {[%clk 0:02:35]} 27. bxa4 {[%clk 0:03:07]}  Ra8 {[%clk 0:03:23]} 28. a5 {[%clk 0:03:07]}  Nxa5 {[%clk 0:03:23]} 29. Bxa5 {[%clk 0:03:07]}  Rxa5 {[%clk 0:03:23]} 30. Rc2 {[%clk 0:02:37]}  Ra3 {[%clk 0:02:45]} 31. Ne2 {[%clk 0:02:20]}  Rda8 {[%clk 0:02:45]} 32. Nc3 {[%clk 0:02:37]}  d4 {[%clk 0:02:45]} 33. Nd5 {[%clk 0:02:37]}  Bf8 {[%clk 0:02:45]} 34. Nb6 {[%clk 0:02:01]}  Rxa2 {[%clk 0:02:40]} 35. Rxa2 {[%clk 0:02:03]}  Rxa2 {[%clk 0:02:48]} 36. Nc4 {[%clk 0:02:11]}  h5 {[%clk 0:02:45]} 37. Rb1 {[%clk 0:02:37]}  Ra8 {[%clk 0:02:45]} 38. Rb7 {[%clk 0:02:37]}  Re8 {[%clk 0:02:45]} 39. Rd7 {[%clk 0:02:18]}  Re1 {[%clk 0:02:44]} 40. f4 {[%clk 0:01:16]}  Re8 {[%clk 0:02:44]} 41. Ne5 {[%clk 0:02:18]}  Be7 {[%clk 0:02:12]} 42. Rd5 {[%clk 0:01:11]}  g6 {[%clk 0:02:12]} 43. Rd7 {[%clk 0:01:11]}  Kf8 {[%clk 0:02:12]} 44. Kf3 {[%clk 0:01:11]}  Ra8 {[%clk 0:02:12]} 45. Rb7 {[%clk 0:01:11]}  Ke8 {[%clk 0:02:12]} 46. Ke4 {[%clk 0:01:11]}  Kf8 {[%clk 0:02:12]} 47. Nc6 {[%clk 0:01:11]}  Bf6 {[%clk 0:02:12]} 48. Rb8+ {[%clk 0:00:41]}  Rxb8 {[%clk 0:01:24]} 49. Nxb8 {[%clk 0:00:41]}  Bd8 {[%clk 0:01:24]} 50. Nd7+ {[%clk 0:00:41]}  Ke7 {[%clk 0:01:24]} 51. Nxc5 {[%clk 0:00:41]}  Ba5 {[%clk 0:01:24]} 52. Nb3 {[%clk 0:00:41]}  Be1 {[%clk 0:01:24]} 53. Kf3 {[%clk 0:00:41]}  Bc3 {[%clk 0:01:24]} 54. f5 {[%clk 0:00:41]}  gxf5 {[%clk 0:01:24]} 55. Nc1 {[%clk 0:00:41]}  Bd2 {[%clk 0:01:24]} 56. Nb3 {[%clk 0:00:41]}  Be3 {[%clk 0:01:24]} 57. Na1 {[%clk 0:00:41]}  Bd2 {[%clk 0:02:08]} 58. Nb3 {[%clk 0:00:30]}  Bc3 {[%clk 0:02:08]} 59. Nc1 {[%clk 0:00:30]}  Bd2 {[%clk 0:02:08]} 60. Nb3 {[%clk 0:00:30]}  Be3 {[%clk 0:02:08]} 61. Na1 {[%clk 0:00:30]}  Bc1 {[%clk 0:02:08]} 62. Nb3 {[%clk 0:00:44]}  Bb2 {[%clk 0:02:08]} 63. Kf4 {[%clk 0:00:51]}  Kf6 {[%clk 0:00:54]} 64. Na5 {[%clk 0:00:35]}  Bc1+ {[%clk 0:01:02]} 65. Kf3 {[%clk 0:00:45]}  Ke6 {[%clk 0:01:05]} 66. Nc6 {[%clk 0:00:44]}  Be3 {[%clk 0:01:10]} 67. Nd8+ {[%clk 0:00:50]}  Ke7 {[%clk 0:01:08]} 68. Nc6+ {[%clk 0:00:55]}  Kf6 {[%clk 0:01:01]} 69. Nb4 {[%clk 0:00:57]}  Ke6 {[%clk 0:01:05]} 70. Nc2 {[%clk 0:01:03]}  Bg1 {[%clk 0:01:10]} 71. Kg2 {[%clk 0:01:11]}  Be3 {[%clk 0:01:16]} 72. Nxe3 {[%clk 0:01:03]}  dxe3 {[%clk 0:01:25]} 73. Kf3 {[%clk 0:01:12]}  f4 {[%clk 0:01:04]} 74. gxf4 {[%clk 0:01:20]}  Kd5 {[%clk 0:01:00]} 75. Kxe3 {[%clk 0:01:20]}  f5 {[%clk 0:01:09]} 76. Ke2 {[%clk 0:01:16]}  Kc5 {[%clk 0:01:15]} 77. Kd1 {[%clk 0:01:21]}  Kd5 {[%clk 0:00:35]} 78. Kc2 {[%clk 0:01:29]}  Kc5 {[%clk 0:00:42]} 79. Kc3 {[%clk 0:01:36]}  Kd5 {[%clk 0:00:51]} 80. d4 {[%clk 0:01:36]}  Ke4 {[%clk 0:00:58]} 81. Kc4 {[%clk 0:01:44]}  Kxf4 {[%clk 0:01:07]} 82. d5 {[%clk 0:01:15]}  Kg3 {[%clk 0:01:03]} 83. d6 {[%clk 0:01:04]}  f4 {[%clk 0:01:11]} 84. d7 {[%clk 0:01:10]}  f3 {[%clk 0:01:20]} 85. d8=Q {[%clk 0:01:16]}  f2 {[%clk 0:01:29]} 86. Qf6 {[%clk 0:00:32]}  Kg2 {[%clk 0:01:38]} 87. Kd4 {[%clk 0:00:28]}  f1=Q {[%clk 0:01:33]} 88. Qxf1+ {[%clk 0:00:36]}  Kxf1 {[%clk 0:01:51]} 89. Ke4 {[%clk 23:59:47]} 1/2-1/2


[Site "http://www.Chess.com"]

[Event "FIDE World Rapid Chess Championship 2021"]
[White "Puranik, Abhimanyu"]
[Black "Korobov, Anton"]
[WhiteFideId "5061245"]
[BlackFideId "14105730"]
[WhiteElo "2472"]
[BlackElo "2689"]
[Result "0-1"]
[Round "02"]
[TimeControl "900+10"]
[Date "2021.12.26"]
[WhiteClock "0:00:12"]
[BlackClock "0:01:34"]

1. d4 {[%clk 0:15:19]}  Nf6 {[%clk 0:15:19]} 2. Nf3 {[%clk 0:15:27]}  e6 {[%clk 0:15:24]} 3. Bf4 {[%clk 0:15:35]}  b6 {[%clk 0:15:23]} 4. e3 {[%clk 0:15:36]}  Bb7 {[%clk 0:15:32]} 5. c3 {[%clk 0:15:37]}  d5 {[%clk 0:15:32]} 6. Nbd2 {[%clk 0:15:36]}  Bd6 {[%clk 0:15:40]} 7. Bd3 {[%clk 0:15:26]}  Nbd7 {[%clk 0:15:33]} 8. Ne5 {[%clk 0:14:48]}  O-O {[%clk 0:15:29]} 9. h4 {[%clk 0:14:25]}  Ne4 {[%clk 0:14:41]} 10. h5 {[%clk 0:13:56]}  f5 {[%clk 0:12:34]} 11. Nxd7 {[%clk 0:13:49]}  Qxd7 {[%clk 0:12:42]} 12. Nf3 {[%clk 0:13:56]}  Bxf4 {[%clk 0:11:02]} 13. exf4 {[%clk 0:14:04]}  c5 {[%clk 0:11:11]} 14. h6 {[%clk 0:14:00]}  g6 {[%clk 0:11:19]} 15. g3 {[%clk 0:12:52]}  Qd6 {[%clk 0:10:06]} 16. Kf1 {[%clk 0:12:47]}  c4 {[%clk 0:09:50]} 17. Bxe4 {[%clk 0:11:48]}  dxe4 {[%clk 0:09:49]} 18. Ne5 {[%clk 0:11:56]}  b5 {[%clk 0:09:49]} 19. Kg2 {[%clk 0:11:46]}  Bd5 {[%clk 0:09:40]} 20. a4 {[%clk 0:10:00]}  b4 {[%clk 0:09:38]} 21. a5 {[%clk 0:10:08]}  bxc3 {[%clk 0:09:12]} 22. bxc3 {[%clk 0:10:17]}  Rab8 {[%clk 0:09:16]} 23. Re1 {[%clk 0:08:23]}  e3+ {[%clk 0:08:05]} 24. f3 {[%clk 0:08:17]}  Rb2+ {[%clk 0:08:13]} 25. Re2 {[%clk 0:06:25]}  Rfb8 {[%clk 0:08:05]} 26. Kg1 {[%clk 0:05:17]}  Qf8 {[%clk 0:06:39]} 27. Rxb2 {[%clk 0:05:18]}  Rxb2 {[%clk 0:06:48]} 28. Qc1 {[%clk 0:03:20]}  Rd2 {[%clk 0:05:40]} 29. Qb1 {[%clk 0:03:29]}  e2 {[%clk 0:06:48]} 30. Qe1 {[%clk 0:03:33]}  Rc2 {[%clk 0:03:53]} 31. Rc1 {[%clk 0:03:30]}  Rxc1 {[%clk 0:05:03]} 32. Qxc1 {[%clk 0:03:33]}  Qxh6 {[%clk 0:05:03]} 33. Kg2 {[%clk 0:03:33]}  Qf8 {[%clk 0:02:56]} 34. Kf2 {[%clk 0:03:09]}  Qh6 {[%clk 0:02:56]} 35. Kg2 {[%clk 0:03:09]}  Qf8 {[%clk 0:02:56]} 36. Kf2 {[%clk 0:03:09]}  Qh6 {[%clk 0:02:56]} 37. Qg1 {[%clk 0:03:09]}  g5 {[%clk 0:02:24]} 38. Kxe2 {[%clk 0:02:39]}  g4 {[%clk 0:01:54]} 39. fxg4 {[%clk 0:02:39]}  fxg4 {[%clk 0:01:54]} 40. Ke3 {[%clk 0:02:39]}  Qh3 {[%clk 0:01:54]} 41. Kf2 {[%clk 0:02:39]}  Kg7 {[%clk 0:01:54]} 42. Qe1 {[%clk 0:02:39]}  Qh2+ {[%clk 0:01:54]} 43. Ke3 {[%clk 0:02:39]}  h5 {[%clk 0:01:54]} 44. f5 {[%clk 0:01:19]}  h4 {[%clk 0:02:19]} 45. f6+ {[%clk 0:01:19]}  Kf8 {[%clk 0:02:19]} 46. Ng6+ {[%clk 0:01:19]}  Kf7 {[%clk 0:02:19]} 47. Nxh4 {[%clk 0:01:19]}  Kxf6 {[%clk 0:02:19]} 48. Kf4 {[%clk 0:01:19]}  Qa2 {[%clk 0:01:09]} 49. Kxg4 {[%clk 0:00:55]}  Qxa5 {[%clk 0:01:09]} 50. Qf2+ {[%clk 0:00:55]}  Kg7 {[%clk 0:01:09]} 51. Qe3 {[%clk 0:00:55]}  Qc7 {[%clk 0:01:09]} 52. Qg5+ {[%clk 0:00:55]}  Kf8 {[%clk 0:01:09]} 53. Ng6+ {[%clk 0:00:55]}  Ke8 {[%clk 0:01:09]} 54. Ne5 {[%clk 0:00:55]}  Qh7 {[%clk 0:01:09]} 55. Qf6 {[%clk 0:00:47]}  a5 {[%clk 0:01:15]} 56. Kf4 {[%clk 0:00:47]}  a4 {[%clk 0:01:15]} 57. g4 {[%clk 0:00:47]}  a3 {[%clk 0:01:15]} 58. g5 {[%clk 0:00:12]}  Qf5+ {[%clk 0:01:34]} 0-1


[Site "http://www.Chess.com"]

[Event "FIDE World Rapid Chess Championship 2021"]
[White "Narayanan.S.L, "]
[Black "Saric, Ivan"]
[WhiteFideId "5058422"]
[BlackFideId "14508150"]
[WhiteElo "2482"]
[BlackElo "2684"]
[Result "1/2-1/2"]
[Round "02"]
[TimeControl "900+10"]
[Date "2021.12.26"]
[WhiteClock "0:04:06"]
[BlackClock "0:02:37"]

1. e4 {[%clk 0:15:17]}  c5 {[%clk 0:15:19]} 2. Ne2 {[%clk 0:15:25]}  d6 {[%clk 0:15:22]} 3. g3 {[%clk 0:15:33]}  d5 {[%clk 0:15:20]} 4. Bg2 {[%clk 0:15:40]}  dxe4 {[%clk 0:15:28]} 5. Bxe4 {[%clk 0:14:46]}  Nf6 {[%clk 0:15:35]} 6. Bg2 {[%clk 0:14:54]}  e5 {[%clk 0:13:52]} 7. Nbc3 {[%clk 0:14:29]}  Be7 {[%clk 0:14:00]} 8. d3 {[%clk 0:14:31]}  O-O {[%clk 0:14:07]} 9. O-O {[%clk 0:14:29]}  h6 {[%clk 0:14:10]} 10. f4 {[%clk 0:14:05]}  Nc6 {[%clk 0:13:49]} 11. h3 {[%clk 0:14:03]}  Re8 {[%clk 0:11:54]} 12. Be3 {[%clk 0:12:18]}  exf4 {[%clk 0:11:56]} 13. Nxf4 {[%clk 0:12:11]}  Nd4 {[%clk 0:10:37]} 14. Qd2 {[%clk 0:12:01]}  a5 {[%clk 0:10:30]} 15. Rae1 {[%clk 0:12:01]}  Ra6 {[%clk 0:10:29]} 16. Ncd5 {[%clk 0:09:49]}  Nxd5 {[%clk 0:10:19]} 17. Nxd5 {[%clk 0:09:45]}  Bf8 {[%clk 0:08:43]} 18. c3 {[%clk 0:09:25]}  Nf5 {[%clk 0:08:04]} 19. Bf4 {[%clk 0:09:45]}  Rxe1 {[%clk 0:08:11]} 20. Rxe1 {[%clk 0:09:07]}  Re6 {[%clk 0:07:37]} 21. Rf1 {[%clk 0:08:17]}  Bd6 {[%clk 0:07:38]} 22. Qf2 {[%clk 0:07:36]}  Bxf4 {[%clk 0:05:32]} 23. Qxf4 {[%clk 0:07:44]}  Re2 {[%clk 0:05:17]} 24. Rf2 {[%clk 0:07:08]}  Rxf2 {[%clk 0:05:26]} 25. Qxf2 {[%clk 0:06:56]}  Be6 {[%clk 0:05:18]} 26. Nf4 {[%clk 0:06:33]}  Bxa2 {[%clk 0:05:11]} 27. Bxb7 {[%clk 0:06:05]}  g5 {[%clk 0:04:36]} 28. Be4 {[%clk 0:04:51]}  gxf4 {[%clk 0:03:01]} 29. Bxf5 {[%clk 0:04:59]}  fxg3 {[%clk 0:03:03]} 30. Qxg3+ {[%clk 0:04:50]}  Qg5 {[%clk 0:03:07]} 31. Kf2 {[%clk 0:04:45]}  Kg7 {[%clk 0:02:39]} 32. Qe5+ {[%clk 0:04:17]}  Qf6 {[%clk 0:02:45]} 33. Qg3+ {[%clk 0:04:06]}  Qg5 {[%clk 0:03:03]} 34. Qe5+ {[%clk 0:03:25]}  Qf6 {[%clk 0:02:37]} 35. Qg3+ {[%clk 0:04:06]}  Qg5 {[%clk 0:02:37]} 36. Qe5+ {[%clk 0:04:06]} 1/2-1/2


[Site "http://www.Chess.com"]